[Event "Gibraltar Challengers A 2020"]
[Site "Caleta"]
[Date "2020.01.21"]
[Round "1.18"]
[White "Fischer, Robert"]
[Black "Godoy Olazabal, Artur"]
[Result "0-1"]
[ECO "C25"]
[WhiteElo "1923"]
[BlackElo "2154"]
[Annotator "ChessBase"]
[PlyCount "56"]
[EventDate "2020.01.20"]
[EventType "swiss"]
[EventCountry "GGB"]
[SourceTitle "playchess.com"]
[Source "ChessBase"]
[SourceQuality "1"]
[TimeControl "6600+10"]

1. Nc3 {[%emt 0:00:00]} e5 {[%emt 0:00:43]} 2. e4 {[%emt 0:00:04]} Bc5 {[%emt 0:00:35]} 3. Nf3 {[%emt 0:00:24]} d6 {[%emt 0:00:09]} 4. d4 {[%emt 0:02:26]} exd4 {[%emt 0:00:07]} 5. Nxd4 {[%emt 0:00:17]} Qf6 {[%emt 0:00:46]} 6. Nd5 {[%emt 0:03:21]} Qd8 {[%emt 0:09:44]} 7. Nb3 {[%emt 0:05:36]} Bb6 {[%emt 0:10:30]} 8. Bc4 {[%emt 0:07:59]} Nf6 {[%emt 0:01:59]} 9. Nxb6 {[%emt 0:06:29]} axb6 {[%emt 0:00:19]} 10. O-O {[%emt 0:00:47]} O-O {[%emt 0:00:08]} 11. Re1 {[%emt 0:04:40]} Re8 {[%emt 0:05:26]} 12. Bg5 {[%emt 0:03:03]} h6 {[%emt 0:01:56]} 13. Bh4 {[%emt 0:00:36]} Nc6 {[%emt 0:22:16]} 14. Nd4 {[%emt 0:09:16]} g5 {[%emt 0:06:08]} 15. Bg3 {[%emt 0:03:35]} Nxe4 {[%emt 0:04:08]} 16. Qh5 {[%emt 0:15:31]} d5 {[%emt 0:20:38]} 17. Bb5 {[%emt 0:02:06]} Qf6 {[%emt 0:04:56]} 18. c3 {[%emt 0:03:31]} Bd7 {[%emt 0:07:57]} 19. Bxc7 {[%emt 0:07:14]} Qxf2+ {[%emt 0:02:11]} 20. Kh1 {[%emt 0:00:01]} Rxa2 {[%emt 0:00:29]} 21. Qxh6 {[%emt 0:09:26]} Nxd4 {[%emt 0:08:50]} 22. Bxd7 {[%emt 0:00:22]} Nf3 {[%emt 0:02:14]} 23. gxf3 {[%emt 0:07:08]} Qxf3+ {[%emt 0:00:02]} 24. Kg1 {[%emt 0:00:04]} Rxb2 {[%emt 0:00:08]} 25. Qh3 {[%emt 0:01:59]} Qf2+ {[%emt 0:00:08]} 26. Kh1 {[%emt 0:00:03]} Qxe1+ {[%emt 0:00:11]} 27. Qf1 {[%emt 0:01:45]} Qxf1+ {[%emt 0:00:47]} 28. Rxf1 {[%emt 0:00:02]} Re7 {[%emt 0:00:07]} 0-1

[Event "Gibraltar Challengers A 2020"]
[Site "Caleta"]
[Date "2020.01.21"]
[Round "1.20"]
[White "Brown, David"]
[Black "Lipecki, Alexander"]
[Result "0-1"]
[ECO "C01"]
[WhiteElo "1916"]
[BlackElo "2152"]
[Annotator "ChessBase"]
[PlyCount "116"]
[EventDate "2020.01.20"]
[EventType "swiss"]
[EventCountry "GGB"]
[SourceTitle "playchess.com"]
[Source "ChessBase"]
[SourceQuality "1"]
[TimeControl "6600+10"]

1. e4 {[%emt 0:00:00]} e6 {[%emt 0:00:12]} 2. d4 {[%emt 0:00:00]} d5 {[%emt 0:00:12]} 3. Nc3 {[%emt 0:00:07]} Nf6 {[%emt 0:00:11]} 4. exd5 {[%emt 0:00:11]} exd5 {[%emt 0:00:11]} 5. Bd3 {[%emt 0:00:47]} Bd6 {[%emt 0:00:12]} 6. Nce2 {[%emt 0:01:28]} Bg4 {[%emt 0:01:57]} 7. c3 {[%emt 0:01:29]} c6 {[%emt 0:03:07]} 8. Qc2 {[%emt 0:01:08]} Qe7 {[%emt 0:00:57]} 9. Bg5 {[%emt 0:01:07]} Nbd7 {[%emt 0:01:39]} 10. O-O-O {[%emt 0:02:23]} O-O-O {[%emt 0:04:08]} 11. f3 {[%emt 0:04:25]} Bh5 {[%emt 0:00:45]} 12. Ng3 {[%emt 0:02:48]} Bg6 {[%emt 0:03:56]} 13. Nf5 {[%emt 0:01:45]} Bxf5 {[%emt 0:00:46]} 14. Bxf5 {[%emt 0:00:04]} h6 {[%emt 0:02:27]} 15. Bh4 {[%emt 0:12:59]} Rhe8 {[%emt 0:09:36]} 16. Bg3 {[%emt 0:05:09]} g6 {[%emt 0:08:38]} 17. Bxd6 {[%emt 0:02:40]} Qxd6 {[%emt 0:00:04]} 18. Bd3 {[%emt 0:00:47]} Re3 {[%emt 0:02:58]} 19. Qd2 {[%emt 0:13:03]} Ree8 {[%emt 0:03:33]} 20. Nh3 {[%emt 0:01:33]} h5 {[%emt 0:00:39]} 21. Qf4 {[%emt 0:02:35]} Qxf4+ {[%emt 0:00:48]} 22. Nxf4 {[%emt 0:00:08]} Nf8 {[%emt 0:01:07]} 23. Rhe1 {[%emt 0:00:50]} Kd7 {[%emt 0:00:33]} 24. Kd2 {[%emt 0:00:54]} Kd6 {[%emt 0:02:18]} 25. Bc2 {[%emt 0:02:57]} Rxe1 {[%emt 0:02:07]} 26. Rxe1 {[%emt 0:00:07]} Re8 {[%emt 0:00:09]} 27. Re3 {[%emt 0:03:06]} N8d7 {[%emt 0:05:39]} 28. Nd3 {[%emt 0:05:15]} a5 {[%emt 0:01:48]} 29. Rxe8 {[%emt 0:06:50]} Nxe8 {[%emt 0:00:03]} 30. Ke3 {[%emt 0:00:18]} Ng7 {[%emt 0:01:25]} 31. Nf4 {[%emt 0:02:01]} b5 {[%emt 0:05:27]} 32. Nh3 {[%emt 0:03:27]} Nb6 {[%emt 0:00:40]} 33. b3 {[%emt 0:04:52]} b4 {[%emt 0:03:27]} 34. cxb4 {[%emt 0:01:40]} axb4 {[%emt 0:00:04]} 35. Ng5 {[%emt 0:06:18]} Ke7 {[%emt 0:00:29]} 36. Bd3 {[%emt 0:01:17]} f6 {[%emt 0:05:19]} 37. Nh3 {[%emt 0:01:11]} g5 {[%emt 0:01:30]} 38. f4 {[%emt 0:02:56]} g4 {[%emt 0:01:38]} 39. Ng1 {[%emt 0:02:42]} Nc8 {[%emt 0:07:56]} 40. f5 {[%emt 0:04:44]} Kd6 {[%emt 0:01:18]} 41. Ne2 {[%emt 0:02:28]} Ne7 {[%emt 0:02:45]} 42. Kf4 {[%emt 0:00:53]} c5 {[%emt 0:00:34]} 43. Bb1 {[%emt 0:02:49]} c4 {[%emt 0:03:44]} 44. Bc2 {[%emt 0:00:16]} Nc6 {[%emt 0:01:32]} 45. Ke3 {[%emt 0:00:29]} Na7 {[%emt 0:01:19]} 46. Kd2 {[%emt 0:01:12]} Nb5 {[%emt 0:00:47]} 47. bxc4 {[%emt 0:00:18]} dxc4 {[%emt 0:00:04]} 48. Be4 {[%emt 0:00:07]} h4 {[%emt 0:01:54]} 49. Ke3 {[%emt 0:00:22]} Nh5 {[%emt 0:00:47]} 50. Ba8 {[%emt 0:00:48]} Nc7 {[%emt 0:00:22]} 51. Be4 {[%emt 0:00:03]} Nd5+ {[%emt 0:00:16]} 52. Kd2 {[%emt 0:00:33]} Nhf4 {[%emt 0:01:10]} 53. Nxf4 {[%emt 0:00:02]} Nxf4 {[%emt 0:00:22]} 54. Ba8 {[%emt 0:00:10]} Nd5 {[%emt 0:00:39]} 55. Bb7 {[%emt 0:00:11]} Nc7 {[%emt 0:04:11]} 56. Be4 {[%emt 0:00:03]} Nb5 {[%emt 0:00:13]} 57. Kc2 {[%emt 0:00:33]} Nxd4+ {[%emt 0:00:10]} 58. Kd2 {[%emt 0:00:08]} Ke5 {[%emt 0:00:08]} 0-1

[Event "Gibraltar Challengers A 2020"]
[Site "Caleta"]
[Date "2020.01.21"]
[Round "1.21"]
[White "Royset, Pal"]
[Black "Gostelow, David W"]
[Result "1/2-1/2"]
[ECO "B40"]
[WhiteElo "2151"]
[BlackElo "1901"]
[Annotator "ChessBase"]
[PlyCount "35"]
[EventDate "2020.01.20"]
[EventType "swiss"]
[EventCountry "GGB"]
[SourceTitle "playchess.com"]
[Source "ChessBase"]
[SourceQuality "1"]
[TimeControl "6600+10"]

1. e4 {[%emt 0:00:00]} c5 {[%emt 0:00:00]} 2. Nc3 {[%emt 0:00:39]} e6 {[%emt 0:00:00]} 3. Nf3 {[%emt 0:00:54]} d5 {[%emt 0:01:27]} 4. Bb5+ {[%emt 0:01:21]} Nc6 {[%emt 0:01:12]} 5. O-O {[%emt 0:02:15]} dxe4 {[%emt 0:03:57]} 6. Nxe4 {[%emt 0:01:51]} Nf6 {[%emt 0:00:13]} 7. Qe2 {[%emt 0:03:41]} Bd7 {[%emt 0:04:50]} 8. d3 {[%emt 0:03:13]} a6 {[%emt 0:10:59]} 9. Bxc6 {[%emt 0:00:26]} Bxc6 {[%emt 0:00:21]} 10. b3 {[%emt 0:08:48]} Be7 {[%emt 0:01:11]} 11. Bb2 {[%emt 0:00:22]} O-O {[%emt 0:01:02]} 12. Ne5 {[%emt 0:02:41]} Bxe4 {[%emt 0:09:06]} 13. dxe4 {[%emt 0:00:13]} Qc7 {[%emt 0:00:23]} 14. f4 {[%emt 0:05:16]} Rfd8 {[%emt 0:04:34]} 15. c4 {[%emt 0:02:11]} Qa5 {[%emt 0:03:23]} 16. Qf3 {[%emt 0:03:11]} h6 {[%emt 0:02:53]} 17. g4 {[%emt 0:09:49]} Nh7 {[%emt 0:07:42]} 18. g5 {[%emt 0:15:38]} 1/2-1/2

[Event "Gibraltar Challengers A 2020"]
[Site "Caleta"]
[Date "2020.01.21"]
[Round "1.22"]
[White "Tranter, Stephen"]
[Black "Voiteanu, Gabriel"]
[Result "0-1"]
[ECO "C55"]
[WhiteElo "1899"]
[BlackElo "2133"]
[Annotator "ChessBase"]
[PlyCount "47"]
[EventDate "2020.01.20"]
[EventType "swiss"]
[EventCountry "GGB"]
[SourceTitle "playchess.com"]
[Source "ChessBase"]
[SourceQuality "1"]
[TimeControl "6600+10"]

1. e4 {[%emt 0:00:00]} d6 {[%emt 0:00:08]} 2. Bc4 {[%emt 0:02:25]} Nf6 {[%emt 0:01:11]} 3. Nc3 {[%emt 0:07:26]} e5 {[%emt 0:03:36]} 4. Nf3 {[%emt 0:05:04]} Be7 {[%emt 0:01:32]} 5. d3 {[%emt 0:02:30]} Nc6 {[%emt 0:01:27]} 6. h3 {[%emt 0:02:39]} Na5 {[%emt 0:00:52]} 7. Bb5+ {[%emt 0:01:10]} c6 {[%emt 0:00:22]} 8. Ba4 {[%emt 0:00:04]} b5 {[%emt 0:00:20]} 9. Bb3 {[%emt 0:00:40]} O-O {[%emt 0:01:35]} 10. Bg5 {[%emt 0:03:02]} Bb7 {[%emt 0:03:55]} 11. Qe2 {[%emt 0:01:16]} Nd7 {[%emt 0:01:49]} 12. Bxe7 {[%emt 0:02:25]} Qxe7 {[%emt 0:00:10]} 13. Nd1 {[%emt 0:00:24]} d5 {[%emt 0:03:10]} 14. Ne3 {[%emt 0:01:31]} dxe4 {[%emt 0:03:50]} 15. dxe4 {[%emt 0:00:24]} Nc5 {[%emt 0:01:42]} 16. Nf5 {[%emt 0:02:15]} Qf6 {[%emt 0:01:14]} 17. g4 {[%emt 0:02:44]} Naxb3 {[%emt 0:04:00]} 18. axb3 {[%emt 0:02:25]} Ne6 {[%emt 0:01:06]} 19. g5 {[%emt 0:01:19]} Nxg5 {[%emt 0:01:50]} 20. Rg1 {[%emt 0:15:45]} Ne6 {[%emt 0:02:28]} 21. Qe3 {[%emt 0:02:52]} c5 {[%emt 0:01:02]} 22. O-O-O {[%emt 0:09:53]} Rad8 {[%emt 0:02:16]} 23. Rxd8 {[%emt 0:01:38]} Rxd8 {[%emt 0:00:24]} 24. Nh2 {[%emt 0:00:26]} 0-1

[Event "Gibraltar Challengers A 2020"]
[Site "Caleta"]
[Date "2020.01.21"]
[Round "1.23"]
[White "Kandic, Milan"]
[Black "Kaplan, Amiram"]
[Result "1-0"]
[ECO "C14"]
[WhiteElo "2132"]
[BlackElo "1880"]
[Annotator "ChessBase"]
[PlyCount "23"]
[EventDate "2020.01.20"]
[EventType "swiss"]
[EventCountry "GGB"]
[SourceTitle "playchess.com"]
[Source "ChessBase"]
[SourceQuality "1"]
[TimeControl "6600+10"]

1. d4 {[%emt 0:00:00]} e6 {[%emt 0:00:31]} 2. e4 {[%emt 0:00:04]} d5 {[%emt 0:00:03]} 3. Nc3 {[%emt 0:00:03]} Nf6 {[%emt 0:01:40]} 4. Bg5 {[%emt 0:00:13]} Be7 {[%emt 0:00:26]} 5. e5 {[%emt 0:03:23]} Nfd7 {[%emt 0:00:33]} 6. Bxe7 {[%emt 0:00:14]} Qxe7 {[%emt 0:00:07]} 7. f4 {[%emt 0:00:33]} c5 {[%emt 0:01:19]} 8. Nb5 {[%emt 0:01:07]} Nb6 {[%emt 0:04:32]} 9. Nd6+ {[%emt 0:00:25]} Kf8 {[%emt 0:01:44]} 10. dxc5 {[%emt 0:00:26]} Nc4 {[%emt 0:00:26]} 11. Bxc4 {[%emt 0:00:34]} dxc4 {[%emt 0:00:07]} 12. Nxc8 {[%emt 0:00:15]} 1-0

[Event "Gibraltar Challengers A 2020"]
[Site "Caleta"]
[Date "2020.01.21"]
[Round "1.24"]
[White "O`neil, Jim"]
[Black "Ruperez, Miguel"]
[Result "0-1"]
[ECO "D00"]
[WhiteElo "1870"]
[BlackElo "2126"]
[Annotator "ChessBase"]
[PlyCount "60"]
[EventDate "2020.01.20"]
[EventType "swiss"]
[EventCountry "GGB"]
[SourceTitle "playchess.com"]
[Source "ChessBase"]
[SourceQuality "1"]
[TimeControl "6600+10"]

1. d4 {[%emt 0:00:00]} Nf6 {[%emt 0:00:17]} 2. Nc3 {[%emt 0:00:09]} d5 {[%emt 0:00:36]} 3. Bf4 {[%emt 0:00:13]} c6 {[%emt 0:01:26]} 4. e3 {[%emt 0:00:20]} e6 {[%emt 0:05:08]} 5. a3 {[%emt 0:01:37]} Bd6 {[%emt 0:02:11]} 6. Bg3 {[%emt 0:04:45]} b6 {[%emt 0:05:52]} 7. Bd3 {[%emt 0:02:32]} Ba6 {[%emt 0:06:55]} 8. Nf3 {[%emt 0:06:06]} O-O {[%emt 0:05:27]} 9. Ne5 {[%emt 0:07:37]} Bxd3 {[%emt 0:03:43]} 10. Qxd3 {[%emt 0:03:02]} Qc7 {[%emt 0:07:56]} 11. f4 {[%emt 0:07:31]} Nbd7 {[%emt 0:02:33]} 12. O-O-O {[%emt 0:03:46]} b5 {[%emt 0:02:15]} 13. Bh4 {[%emt 0:09:34]} a5 {[%emt 0:04:38]} 14. Nxd7 {[%emt 0:03:03]} Nxd7 {[%emt 0:01:31]} 15. Ne2 {[%emt 0:00:32]} Nb6 {[%emt 0:03:13]} 16. g4 {[%emt 0:05:35]} Nc4 {[%emt 0:02:49]} 17. Rhg1 {[%emt 0:05:41]} a4 {[%emt 0:10:29]} 18. c3 {[%emt 0:03:27]} c5 {[%emt 0:00:24]} 19. Rg3 {[%emt 0:02:53]} b4 {[%emt 0:05:07]} 20. Rh3 {[%emt 0:02:34]} g6 {[%emt 0:02:16]} 21. dxc5 {[%emt 0:06:13]} bxa3 {[%emt 0:02:52]} 22. bxa3 {[%emt 0:03:49]} Qxc5 {[%emt 0:01:35]} 23. Rd2 {[%emt 0:04:26]} Qxa3+ {[%emt 0:01:59]} 24. Kd1 {[%emt 0:00:12]} Qa1+ {[%emt 0:03:43]} 25. Nc1 {[%emt 0:00:20]} Nxd2 {[%emt 0:00:36]} 26. Kxd2 {[%emt 0:02:45]} Rfb8 {[%emt 0:00:42]} 27. Bf6 {[%emt 0:02:57]} Ba3 {[%emt 0:01:42]} 28. Qf1 {[%emt 0:01:26]} Qxc1+ {[%emt 0:01:16]} 29. Qxc1 {[%emt 0:00:09]} Bxc1+ {[%emt 0:00:06]} 30. Kxc1 {[%emt 0:00:05]} a3 {[%emt 0:00:14]} 0-1

[Event "Gibraltar Challengers A 2020"]
[Site "Caleta"]
[Date "2020.01.21"]
[Round "1.25"]
[White "Dolzhikova, Olga"]
[Black "Niharika Ch"]
[Result "1-0"]
[ECO "B07"]
[WhiteElo "2123"]
[BlackElo "1865"]
[Annotator "ChessBase"]
[PlyCount "63"]
[EventDate "2020.01.20"]
[EventType "swiss"]
[EventCountry "GGB"]
[SourceTitle "playchess.com"]
[Source "ChessBase"]
[SourceQuality "1"]
[TimeControl "6600+10"]

1. e4 {[%emt 0:00:00]} c5 {[%emt 0:00:00]} 2. c3 {[%emt 0:00:04]} d6 {[%emt 0:00:04]} 3. d4 {[%emt 0:00:21]} Nf6 {[%emt 0:00:08]} 4. Bd3 {[%emt 0:00:33]} Nc6 {[%emt 0:00:07]} 5. Nf3 {[%emt 0:00:51]} e5 {[%emt 0:00:14]} 6. h3 {[%emt 0:08:17]} a6 {[%emt 0:13:42]} 7. O-O {[%emt 0:02:45]} b5 {[%emt 0:02:33]} 8. a4 {[%emt 0:03:11]} b4 {[%emt 0:05:54]} 9. d5 {[%emt 0:09:54]} Nb8 {[%emt 0:04:21]} 10. cxb4 {[%emt 0:01:06]} cxb4 {[%emt 0:00:30]} 11. a5 {[%emt 0:00:27]} Nbd7 {[%emt 0:01:29]} 12. Qa4 {[%emt 0:03:54]} Be7 {[%emt 0:04:33]} 13. Be3 {[%emt 0:04:54]} O-O {[%emt 0:02:39]} 14. Qxb4 {[%emt 0:09:04]} Nc5 {[%emt 0:01:08]} 15. Bxc5 {[%emt 0:01:15]} dxc5 {[%emt 0:04:37]} 16. Qc3 {[%emt 0:00:13]} Bd6 {[%emt 0:08:06]} 17. Nxe5 {[%emt 0:01:13]} Re8 {[%emt 0:08:39]} 18. f4 {[%emt 0:04:42]} Nh5 {[%emt 0:09:42]} 19. Nxf7 {[%emt 0:18:36]} Kxf7 {[%emt 0:12:48]} 20. e5 {[%emt 0:00:24]} Kg8 {[%emt 0:01:56]} 21. exd6 {[%emt 0:04:42]} Qxd6 {[%emt 0:01:17]} 22. Qc4 {[%emt 0:10:21]} Rb8 {[%emt 0:05:37]} 23. Nd2 {[%emt 0:05:07]} Rb4 {[%emt 0:03:18]} 24. Qc2 {[%emt 0:01:41]} Nxf4 {[%emt 0:04:15]} 25. Ne4 {[%emt 0:06:29]} Qh6 {[%emt 0:04:10]} 26. Rae1 {[%emt 0:00:15]} Bd7 {[%emt 0:03:47]} 27. Nxc5 {[%emt 0:06:30]} Rxe1 {[%emt 0:01:31]} 28. Rxe1 {[%emt 0:00:07]} Bxh3 {[%emt 0:03:02]} 29. Bxh7+ {[%emt 0:02:46]} Kf7 {[%emt 0:00:51]} 30. Ne4 {[%emt 0:00:24]} Rb7 {[%emt 0:03:08]} 31. Qc6 {[%emt 0:01:53]} Bc8 {[%emt 0:00:38]} 32. Nd6+ {[%emt 0:00:22]} 1-0

[Event "Gibraltar Challengers A 2020"]
[Site "Caleta"]
[Date "2020.01.21"]
[Round "1.26"]
[White "Auvinen, Esa"]
[Black "Bengherabi, Khalil"]
[Result "0-1"]
[ECO "B70"]
[WhiteElo "1850"]
[BlackElo "2106"]
[Annotator "ChessBase"]
[PlyCount "114"]
[EventDate "2020.01.20"]
[EventType "swiss"]
[EventCountry "GGB"]
[SourceTitle "playchess.com"]
[Source "ChessBase"]
[SourceQuality "1"]
[TimeControl "6600+10"]

1. e4 {[%emt 0:00:00]} c5 {[%emt 0:00:00]} 2. Nf3 {[%emt 0:00:04]} d6 {[%emt 0:01:25]} 3. d4 {[%emt 0:00:17]} cxd4 {[%emt 0:00:04]} 4. Nxd4 {[%emt 0:00:08]} Nf6 {[%emt 0:00:04]} 5. Nc3 {[%emt 0:00:17]} g6 {[%emt 0:00:05]} 6. Bb5+ {[%emt 0:01:52]} Nbd7 {[%emt 0:05:14]} 7. O-O {[%emt 0:02:16]} Bg7 {[%emt 0:00:03]} 8. Be3 {[%emt 0:03:14]} O-O {[%emt 0:00:10]} 9. Re1 {[%emt 0:07:03]} Nc5 {[%emt 0:19:20]} 10. f3 {[%emt 0:01:23]} a6 {[%emt 0:00:29]} 11. Bf1 {[%emt 0:00:24]} Bd7 {[%emt 0:06:02]} 12. Qd2 {[%emt 0:04:54]} Rc8 {[%emt 0:07:32]} 13. Rad1 {[%emt 0:04:17]} Re8 {[%emt 0:02:54]} 14. Kh1 {[%emt 0:01:45]} b5 {[%emt 0:05:29]} 15. a3 {[%emt 0:06:42]} Qc7 {[%emt 0:00:26]} 16. Bf2 {[%emt 0:07:20]} Qb7 {[%emt 0:23:25]} 17. Be3 {[%emt 0:05:08]} b4 {[%emt 0:11:56]} 18. axb4 {[%emt 0:00:11]} Qxb4 {[%emt 0:00:03]} 19. Rb1 {[%emt 0:01:53]} Red8 {[%emt 0:10:03]} 20. Red1 {[%emt 0:00:33]} a5 {[%emt 0:04:09]} 21. Nd5 {[%emt 0:06:16]} Nxd5 {[%emt 0:03:53]} 22. exd5 {[%emt 0:00:16]} Qxd2 {[%emt 0:01:50]} 23. Rxd2 {[%emt 0:00:16]} Rb8 {[%emt 0:00:31]} 24. c3 {[%emt 0:08:36]} Bxd4 {[%emt 0:01:03]} 25. Bxd4 {[%emt 0:04:43]} Nb3 {[%emt 0:04:35]} 26. Rdd1 {[%emt 0:02:19]} Bf5 {[%emt 0:00:18]} 27. Bd3 {[%emt 0:01:27]} Nxd4 {[%emt 0:00:01]} 28. cxd4 {[%emt 0:00:14]} Bxd3 {[%emt 0:00:01]} 29. Rxd3 {[%emt 0:00:22]} Rdc8 {[%emt 0:00:01]} 30. h3 {[%emt 0:05:14]} Rb5 {[%emt 0:02:17]} 31. Ra3 {[%emt 0:01:10]} Rxd5 {[%emt 0:00:18]} 32. Rba1 {[%emt 0:04:26]} Rc2 {[%emt 0:00:40]} 33. Rxa5 {[%emt 0:00:54]} Rxa5 {[%emt 0:00:07]} 34. Rxa5 {[%emt 0:00:08]} Rxb2 {[%emt 0:00:01]} 35. d5 {[%emt 0:01:51]} Rc2 {[%emt 0:00:05]} 36. Ra7 {[%emt 0:06:24]} Kf8 {[%emt 0:00:02]} 37. Ra4 {[%emt 0:00:24]} Rd2 {[%emt 0:00:01]} 38. Ra5 {[%emt 0:00:14]} Kg7 {[%emt 0:00:01]} 39. Kh2 {[%emt 0:01:51]} Kf6 {[%emt 0:00:06]} 40. Kg3 {[%emt 0:00:28]} g5 {[%emt 0:00:31]} 41. Rb5 {[%emt 0:01:01]} h5 {[%emt 0:00:03]} 42. Ra5 {[%emt 0:00:32]} h4+ {[%emt 0:00:08]} 43. Kh2 {[%emt 0:00:12]} Re2 {[%emt 0:00:43]} 44. Kg1 {[%emt 0:03:01]} Re5 {[%emt 0:00:10]} 45. Ra4 {[%emt 0:01:28]} Rxd5 {[%emt 0:00:02]} 46. f4 {[%emt 0:00:12]} Rf5 {[%emt 0:00:40]} 47. fxg5+ {[%emt 0:00:23]} Kxg5 {[%emt 0:00:01]} 48. Rg4+ {[%emt 0:00:47]} Kh5 {[%emt 0:00:01]} 49. Rg8 {[%emt 0:00:11]} Rf4 {[%emt 0:00:29]} 50. g4+ {[%emt 0:02:07]} hxg3 {[%emt 0:00:02]} 51. Kg2 {[%emt 0:00:10]} Rf6 {[%emt 0:00:28]} 52. Rh8+ {[%emt 0:00:27]} Rh6 {[%emt 0:00:01]} 53. Re8 {[%emt 0:01:32]} e6 {[%emt 0:00:02]} 54. Kxg3 {[%emt 0:00:32]} Kg5 {[%emt 0:00:00]} 55. h4+ {[%emt 0:02:05]} Kf5 {[%emt 0:00:03]} 56. Ra8 {[%emt 0:00:43]} d5 {[%emt 0:00:01]} 57. Ra4 {[%emt 0:00:52]} e5 {[%emt 0:00:10]} 0-1

[Event "Gibraltar Challengers A 2020"]
[Site "Caleta"]
[Date "2020.01.21"]
[Round "1.27"]
[White "Lopez Gonzalez, Alfonso"]
[Black "Hari Charan Sai Kalluri"]
[Result "1/2-1/2"]
[ECO "D00"]
[WhiteElo "2199"]
[BlackElo "1836"]
[Annotator "ChessBase"]
[PlyCount "109"]
[EventDate "2020.01.20"]
[EventType "swiss"]
[EventCountry "GGB"]
[SourceTitle "playchess.com"]
[Source "ChessBase"]
[SourceQuality "1"]
[TimeControl "6600+10"]

1. d4 {[%emt 0:00:00]} d5 {[%emt 0:00:00]} 2. Bg5 {[%emt 0:00:00]} c6 {[%emt 0:00:06]} 3. e3 {[%emt 0:00:25]} Qb6 {[%emt 0:00:23]} 4. Qc1 {[%emt 0:00:43]} Bf5 {[%emt 0:01:07]} 5. Nd2 {[%emt 0:02:28]} Nd7 {[%emt 0:01:36]} 6. c4 {[%emt 0:01:14]} e5 {[%emt 0:04:18]} 7. Ngf3 {[%emt 0:02:58]} h6 {[%emt 0:00:56]} 8. Bh4 {[%emt 0:00:10]} e4 {[%emt 0:02:35]} 9. Ng1 {[%emt 0:00:06]} Ngf6 {[%emt 0:02:18]} 10. c5 {[%emt 0:01:10]} Qd8 {[%emt 0:05:20]} 11. b4 {[%emt 0:01:46]} g5 {[%emt 0:01:27]} 12. Bg3 {[%emt 0:00:07]} Nh5 {[%emt 0:00:12]} 13. Be2 {[%emt 0:03:07]} Nxg3 {[%emt 0:00:06]} 14. hxg3 {[%emt 0:00:16]} Qc7 {[%emt 0:01:29]} 15. Bd1 {[%emt 0:09:28]} Bg7 {[%emt 0:04:18]} 16. Ne2 {[%emt 0:00:10]} O-O {[%emt 0:00:21]} 17. Nb3 {[%emt 0:01:10]} Bg6 {[%emt 0:04:21]} 18. Bc2 {[%emt 0:08:08]} f5 {[%emt 0:01:07]} 19. Qd2 {[%emt 0:00:28]} b6 {[%emt 0:01:19]} 20. Rc1 {[%emt 0:02:39]} b5 {[%emt 0:05:13]} 21. Na5 {[%emt 0:01:51]} Rae8 {[%emt 0:03:06]} 22. a4 {[%emt 0:00:57]} a6 {[%emt 0:00:15]} 23. axb5 {[%emt 0:01:24]} axb5 {[%emt 0:00:14]} 24. Bb3 {[%emt 0:01:07]} h5 {[%emt 0:04:48]} 25. Qa2 {[%emt 0:03:58]} Nf6 {[%emt 0:05:57]} 26. Rc3 {[%emt 0:02:18]} Bh6 {[%emt 0:10:38]} 27. Qd2 {[%emt 0:04:25]} Kg7 {[%emt 0:03:56]} 28. Bc2 {[%emt 0:03:23]} Re6 {[%emt 0:04:43]} 29. Ra3 {[%emt 0:00:39]} Rfe8 {[%emt 0:02:23]} 30. Rh3 {[%emt 0:04:25]} Ng4 {[%emt 0:06:26]} 31. Qc1 {[%emt 0:02:38]} Qf7 {[%emt 0:06:46]} 32. Bd1 {[%emt 0:01:09]} Rf6 {[%emt 0:04:31]} 33. Ra2 {[%emt 0:14:29]} Re7 {[%emt 0:09:28]} 34. Nb3 {[%emt 0:01:09]} f4 {[%emt 0:02:21]} 35. gxf4 {[%emt 0:00:38]} gxf4 {[%emt 0:00:06]} 36. Nxf4 {[%emt 0:00:44]} Bxf4 {[%emt 0:01:47]} 37. exf4 {[%emt 0:00:26]} e3 {[%emt 0:00:36]} 38. Bxg4 {[%emt 0:00:29]} exf2+ {[%emt 0:00:10]} 39. Kxf2 {[%emt 0:00:14]} hxg4 {[%emt 0:00:03]} 40. Rh1 {[%emt 0:03:24]} Rxf4+ {[%emt 0:00:34]} 41. Kg3 {[%emt 0:00:41]} Ree4 {[%emt 0:02:18]} 42. Rf2 {[%emt 0:06:30]} Qe6 {[%emt 0:05:55]} 43. Rxf4 {[%emt 0:03:11]} Re3+ {[%emt 0:00:01]} 44. Kh4 {[%emt 0:06:17]} Qe7+ {[%emt 0:01:15]} 45. Kxg4 {[%emt 0:00:08]} Qe6+ {[%emt 0:00:03]} 46. Kh4 {[%emt 0:00:16]} Qe7+ {[%emt 0:00:14]} 47. Kg4 {[%emt 0:00:06]} Qd7+ {[%emt 0:00:09]} 48. Kh4 {[%emt 0:00:16]} Qd8+ {[%emt 0:00:24]} 49. Kg4 {[%emt 0:00:14]} Qd7+ {[%emt 0:00:12]} 50. Kh4 {[%emt 0:00:08]} Qd8+ {[%emt 0:00:11]} 51. Kg4 {[%emt 0:00:07]} Qc8+ 52. Kh4 {[%emt 0:00:07]} Qh8+ {[%emt 0:00:03]} 53. Kg4 {[%emt 0:00:19]} Qc8+ {[%emt 0:00:00]} 54. Kh4 {[%emt 0:00:09]} Qd8+ {[%emt 0:00:29]} 55. Kg4 {[%emt 0:00:08]} 1/2-1/2